Cogmind - Beta 14 @@@ ROGUE MODE // 2024.08.28 @ 03:14:32 Player: Necroptosis Result: Destroyed by Y-54 Guardian with Gatling Laser Performance ------------- Evolutions (3) 1500 Regions Visited (8) 1600 Robots Destroyed (137) 685 Value Destroyed (5656) 5656 Prototype IDs (5) 100 Alien Tech Used (0) 0 Bonus (4579) 4579 TOTAL SCORE: 14120 Bonus ------- High Alert Combat Kills 1081 Follower Combat Kills 409 Entered Garrisons 600 Used RIF Installer 2500 Friendly Fire -11 Cogmind --------- Core Integrity 0/700 Matter 278/300 Energy 150/150 System Corruption 9% Temperature Cool (12) Movement Core (800) Ox15 Location -7/Garrison Parts ------- > --- POWER (1) -------- Micro Nuclear Core > --- PROPULSION (3) --- (None) > --- UTILITY (5) ------ High-capacity Storage Unit Relay Coupler [NC] (35) Relay Coupler [Grunt] (19) Relay Coupler [Brawler] (5) Relay Coupler [Sentry] (29) > --- WEAPON (4) ------- Improved Datajack > --- INVENTORY (20) --- Micro Nuclear Core Improved Heat Sink Improved Heat Sink Transmission Jammer Improved Medium Armor Plating Relay Coupler [Swarmer] (43) Relay Coupler [Sentry] (27) Relay Coupler [Behemoth] (17) Proton Cannon Mini Grenade Launcher Improved Remote Datajack Peak State ------------ > --- POWER ------------ Light Angular Momentum Engine > --- PROPULSION ------- Flexi-carbon Leg Myomer Leg Myomer Leg > --- UTILITY ---------- Improved Heat Sink High-capacity Storage Unit Improved Target Analyzer Relay Coupler [NC] Relay Coupler [Hunter] > --- WEAPON ----------- Beamcaster Heavy Machine Gun Heavy Mass Driver > --- INVENTORY -------- Improved Deuterium Engine Micro Nuclear Core Micro Nuclear Core Improved Heat Sink Improved Heat Sink Transmission Jammer Improved Medium Armor Plating Relay Coupler [Swarmer] Relay Coupler [Grunt] Relay Coupler [Grunt] Relay Coupler [Brawler] Relay Coupler [Sentry] Relay Coupler [Sentry] Relay Coupler [Behemoth] Particle Gun Autogun Proton Missile Launcher Mini Grenade Launcher Improved Datajack Improved Remote Datajack [Rating: 68] Favorites ----------- Power Micro Nuclear Core Engine Light Angular Momentum Engine Power Core Micro Nuclear Core Propulsion Wheel Treads Light Treads Leg Carbon-fiber Leg Wheel Wheel Utility High-capacity Storage Unit Device Improved Heat Sink Storage High-capacity Storage Unit Processor Improved Target Analyzer Hackware Relay Coupler [Hunter] Protection Improved Medium Armor Plating Weapon Spread Laser Energy Gun Spread Laser Energy Cannon Advanced Beam Cannon Ballistic Gun Autogun Ballistic Cannon Heavy Mass Driver Launcher Proton Missile Launcher Special Weapon Improved Remote Datajack Special Melee Weapon Improved Datajack Build | -11 -10 -9 -8 -8 -7 -7 -7 -7 ------- Run | Yrd Mat Mat Mat Gar Fac Gar Fac Gar Slots Evolved 6 | . . 2 2 . 2 . . . Power . | . . . . . . . . . Propulsion 1 | . . . 1 . . . . . Utility 3 | . . . 1 . 2 . . . Weapon 2 | . . 2 . . . . . . Parts Attached 147 | 7 7 23 10 24 8 32 . 36 Power 14 | 1 1 6 1 1 1 1 . 2 Engine 11 | 1 1 6 . . 1 1 . 1 Core 3 | . . . 1 1 . . . 1 Reactor . | . . . . . . . . . Propulsion 23 | 2 1 4 3 1 2 4 . 6 Treads 5 | . . . . 1 2 1 . 1 Leg 8 | . . . . . . 3 . 5 Wheel 10 | 2 1 4 3 . . . . . Hover . | . . . . . . . . . Flight . | . . . . . . . . . Utility 34 | 2 2 4 2 4 3 8 . 9 Device 14 | 1 1 2 2 2 1 3 . 2 Storage 3 | 1 1 1 . . . . . . Processor 2 | . . . . 1 . 1 . . Hackware 10 | . . . . . . 4 . 6 Protection 5 | . . 1 . 1 2 . . 1 Artifact . | . . . . . . . . . Weapon 76 | 2 3 9 4 18 2 19 . 19 Energy Gun 25 | . 2 5 2 8 1 2 . 5 Energy Cannon 9 | . . 3 . 3 . 1 . 2 Ballistic Gun 20 | 2 1 1 2 1 . 8 . 5 Ballistic Cannon 1 | . . . . . . 1 . . Launcher 5 | . . . . 2 1 1 . 1 Special Weapon 1 | . . . . . . . . 1 Impact Weapon . | . . . . . . . . . Slashing Weapon . | . . . . . . . . . Piercing Weapon . | . . . . . . . . . Special Melee Weapon 15 | . . . . 4 . 6 . 5 Unidentified Prototypes 3 | . . 3 . . . . . . Corrupted Parts 1 | . . . . . . 1 . . System Corruption 7 | . . . . . . 7 . . Parts Lost 38 | . . 2 1 8 1 8 . 18 Power 3 | . . . . 1 . . . 2 Propulsion 10 | . . . 1 1 . 4 . 4 Utility 5 | . . 1 . 1 . . . 3 Weapon 20 | . . 1 . 5 1 4 . 9 Highest Loss Streak 8 | . . 1 1 3 1 2 . 8 To Critical Strikes . | . . . . . . . . . Average Slot Usage (%) 96 | . 100 99 99 98 99 95 90 90 Engine 6 | . 14 10 2 . 6 7 7 5 Core 2 | . . . 6 8 . . . 1 Treads 5 | . . . . 6 17 13 . 2 Leg 4 | . . . . . . 5 23 18 Wheel 12 | . 28 21 26 19 5 . . . Device 10 | . 14 10 18 12 7 10 13 3 Storage 8 | . 14 11 9 9 7 7 7 7 Processor 3 | . . . . . 7 6 7 6 Hackware 5 | . . . . . . 10 7 18 Protection 1 | . . . . 4 15 1 . . Energy Gun 17 | . 19 27 17 26 23 9 7 6 Energy Cannon 5 | . . 12 11 5 4 2 . 1 Ballistic Gun 7 | . 8 3 7 2 . 13 7 8 Ballistic Cannon 1 | . . . . . . 1 7 4 Peak Build Rating 68 | 7 11 21 29 34 43 61 60 68 Average Rating 35 | 4 9 17 25 32 40 47 59 54 On Entrance 28 | . 7 11 18 29 32 41 60 56 Naked Turns . | . . . . . . . . . Heaviest Build 85 | 14 24 64 64 73 79 80 79 85 Greatest Support 70 | 26 26 26 32 32 68 68 43 70 Greatest Overweight (x) 7 | . . 6 1 3 7 5 1 3 Average Overweight (x) 1 | . . 2 1 2 2 1 1 1 Largest Inventory Capacity 20 | 8 10 20 20 20 20 20 20 20 Average Capacity 18 | 7 9 16 20 20 20 20 20 20 Most Carried 20 | 6 10 20 20 20 20 20 20 20 Average Carried 17 | 3 9 15 19 18 19 19 20 17 Final Capacity 20 | 8 10 20 20 20 20 20 20 20 Final Carried 20 | 6 10 20 20 20 20 20 20 11 Class Distribution -------------------- 29% | Bothacker-Gunner 15% | Gunner 12% | Scavenger-Skirmisher 9% | Mutant 7% | Botlord-Gunner 7% | Bothacker-Tank 7% | Tank 6% | Scavenger-Gunner Dominant Class ---------------- Mutant | -10/Materials Gunner | -9/Materials Scavenger-Skirmisher | -8/Materials Scavenger-Gunner | -8/Garrison Bothacker-Tank | -7/Factory Bothacker-Gunner | -7/Garrison Bothacker-Gunner | -7/Factory Botlord-Gunner | -7/Garrison Resources | -11 -10 -9 -8 -8 -7 -7 -7 -7 ----------- Run | Yrd Mat Mat Mat Gar Fac Gar Fac Gar Matter Collected 2968 | 180 192 466 147 287 79 760 . 857 Remotely . | . . . . . . . . . Salvage Created 4460 | 50 323 945 576 985 359 757 . 465 Parts 283 | 7 31 84 22 52 20 39 . 28 Haulers Intercepted 4 | . 1 2 . . 1 . . . Recyclers Shooed . | . . . . . . . . . Parts Field Recycled . | . . . . . . . . . Retrieved Matter . | . . . . . . . . . Parts Self-Destructed . | . . . . . . . . . Prevented . | . . . . . . . . . Kills | -11 -10 -9 -8 -8 -7 -7 -7 -7 ------- Run | Yrd Mat Mat Mat Gar Fac Gar Fac Gar Combat Hostiles Destroyed 112 | . 11 27 12 27 4 19 . 12 Melee 1 | . . . . 1 . . . . Guns 74 | . 11 20 6 19 3 12 . 3 Cannons 26 | . . 7 6 2 1 1 . 9 AOE 9 | . . . . 5 . 4 . . Classes Destroyed 15 | 1 5 4 1 2 1 . . 1 Worker 5 | . 1 2 . . 2 . . . Builder 4 | . . 1 . . 3 . . . Tunneler 2 | 2 . . . . . . . . Hauler 4 | . 1 2 . . 1 . . . Recycler 2 | . . . . . 2 . . . Operator 4 | . . 3 . . . 1 . . Watcher 4 | . 2 2 . . . . . . Swarmer 33 | . 6 12 . 7 . 8 . . Cutter 3 | . . . . 3 . . . . Grunt 47 | . 5 8 6 13 3 7 . 5 Brawler 1 | . . 1 . . . . . . Duelist 2 | . . . . . . . . 2 Sentry 14 | . . 6 5 2 . 1 . . Hunter 4 | . . . 1 1 . 1 . 1 Programmer 8 | . . . . 1 1 2 . 4 Best Kill Streak 8 | 2 3 5 3 7 8 8 . 3 Combat Bots Only 8 | . 3 4 3 7 2 8 . 3 Max Kills in Single Turn 6 | 1 2 2 1 2 6 2 . 2 Gunslinging 1 | . . . . 1 . . . . Exploded 2 | . . . . 2 . 2 . . Melee 1 | . . . . 1 . . . . Uniques/NPCs Destroyed . | . . . . . . . . . Combat | -11 -10 -9 -8 -8 -7 -7 -7 -7 -------- Run | Yrd Mat Mat Mat Gar Fac Gar Fac Gar Hostile Shots Fired 682 | . 20 78 21 124 30 115 . 294 Missed 217 | . 4 21 5 36 8 33 . 110 Damage Taken 6778 | . 180 660 255 1351 405 1383 . 2544 Core 1329 | . 39 170 46 372 48 104 . 550 Absorbed by Shields 106 | . . . . 47 . . . 59 Regen/Repaired (Parts) 91 | . . 91 . . . . . . Core Remaining (%) 66 | 100 84 57 . 24 . . . . Volleys Fired 237 | 2 21 46 20 44 22 37 . 45 Largest 4 | 2 2 4 4 4 4 4 . 4 Hottest 282 | 40 130 260 249 267 279 282 . 235 Shots Fired 727 | 4 42 182 80 141 45 125 . 108 Gun 543 | 4 42 130 51 120 27 100 . 69 Cannon 163 | . . 52 29 17 9 21 . 35 Launcher 19 | . . . . 4 9 4 . 2 Special 2 | . . . . . . . . 2 Kinetic 175 | 4 8 15 15 14 . 51 . 68 Thermal 462 | . 34 152 54 90 36 67 . 29 Explosive 9 | . . . . . 9 . . . Electromagnetic 79 | . . 15 11 37 . 7 . 9 Robot Hit Streak 16 | 2 10 12 11 16 10 10 . 9 Robot Miss Streak 8 | . 8 8 4 5 3 3 . 3 Penetration Max 1 | . . . . . . . . 1 Secondary Targets 2 | . . . . 2 . . . . Max Gunslinging Chain 1 | . . . . 1 . . . . Shots Hit Robots 458 | 2 29 111 60 91 21 67 . 77 Core Hits 393 | 2 46 105 51 95 24 43 . 27 Critical Kills 4 | . . . 1 . . 3 . . Critical Parts Destroyed 1 | . . . . . . 1 . . Critical Strikes 16 | . . . 2 . . 7 . 7 Burn 4 | . . . 1 . . 2 . 1 Meltdown 2 | . . . . . . 2 . . Destroy 3 | . . . 1 . . 2 . . Blast 6 | . . . . . . 1 . 5 Corrupt 1 | . . . . . . . . 1 Melee Attacks 25 | . . . . 2 . 5 . 18 Impact . | . . . . . . . . . Slashing . | . . . . . . . . . Piercing . | . . . . . . . . . Sneak Attacks 10 | . . . . . . . . 10 Combat Hostiles . | . . . . . . . . . Follow-up Attacks . | . . . . . . . . . Damage Inflicted 9189 | 27 419 1704 961 1733 1010 1456 . 1879 Guns 5814 | 27 352 1238 592 1310 362 1074 . 859 Cannons 2184 | . . 466 369 143 61 195 . 950 Explosions 1179 | . 67 . . 268 587 187 . 70 Melee . | . . . . . . . . . Ramming 12 | . . . . 12 . . . . Kinetic 2107 | 27 36 63 105 132 . 463 . 1281 Thermal 5711 | . 316 1451 742 1071 956 806 . 369 Explosive 61 | . . . . . 54 . . 7 Electromagnetic 1298 | . 67 190 114 518 . 187 . 222 Impact . | . . . . . . . . . Slashing . | . . . . . . . . . Piercing . | . . . . . . . . . Highest Corruption 10 | . 1 . . 4 1 10 9 9 Average Corruption 3 | . 1 . . 4 1 2 6 5 Corruption Purged 5 | . . . . . . 1 4 . Corruption Blocked . | . . . . . . . . . Effects 87 | . 1 . . 14 . 34 2 36 Message Errors 15 | . 1 . . 3 . 7 . 4 Matter Fused 24 | . . . . 2 . 9 1 12 Heat Flow Errors 18 | . . . . 3 . 9 . 6 Energy Discharges 11 | . . . . 3 . 5 . 3 Parts Rejected 1 | . . . . 1 . . . . Parts Fused 1 | . . . . . . 1 . . Data Loss (minor) 6 | . . . . 1 . 1 . 4 Data Loss (major) 3 | . . . . . . 2 . 1 Misfires 5 | . . . . 1 . . . 4 Alerts 2 | . . . . . . . 1 1 Weapon Failures 1 | . . . . . . . . 1 Overload Shots . | . . . . . . . . . Overflow Damage 191 | . . 13 6 . 72 6 . 94 Projectiles 113 | . . 13 6 . . . . 94 Explosions 78 | . . . . . 72 6 . . Melee . | . . . . . . . . . Knockbacks 4 | . . . . . . . . 4 Impact . | . . . . . . . . . Kinetic 4 | . . . . . . . . 4 Secondary . | . . . . . . . . . Self-Inflicted Damage 317 | . 43 . . 45 71 . . 158 Shots 7 | . 1 . . 1 3 . . 2 Rammed 1 | . . . . 1 . . . . Targets Rammed 1 | . . . . 1 . . . . Kicked . | . . . . . . . . . Crushed . | . . . . . . . . . Highest Temperature 850 | . 288 850 547 585 511 587 . 377 Average Temperature 170 | . 84 210 174 181 224 163 . 111 Received Heat Transfer 1609 | . 18 144 135 406 117 291 . 498 Effects 78 | . . 34 3 16 9 11 . 5 Shutdowns 16 | . . 6 1 2 2 2 . 3 Energy Bleed 4 | . . 2 1 1 . . . . Interference 21 | . . 5 . 6 5 5 . . Matter Decay 7 | . . 4 . . 1 2 . . Short Circuit 6 | . . 4 1 . 1 . . . Damage (minor) 12 | . . 4 . 4 . 2 . 2 Damage (major) 10 | . . 8 . 2 . . . . Damage (core) 2 | . . 1 . 1 . . . . Siege Activations . | . . . . . . . . . Robots Corrupted . | . . . . . . . . . Combat Hostiles . | . . . . . . . . . Parts Fried 2 | . . . . . . 2 . . Impact Corruptions . | . . . . . . . . . Robots Melted 2 | . . . . . . 2 . . Combat Hostiles 2 | . . . . . . 2 . . Parts Melted 19 | . . 1 5 1 . 11 . 1 Heat Transferred 9611 | . 400 2357 1330 1638 1148 1924 . 814 Parts Sabotaged . | . . . . . . . . . Parts Stolen . | . . . . . . . . . Parts Stripped . | . . . . . . . . . Power Chain Reactions 2 | . . . . 2 . . . . Alert | -11 -10 -9 -8 -8 -7 -7 -7 -7 ------- Run | Yrd Mat Mat Mat Gar Fac Gar Fac Gar Peak Influence 1508 | 10 259 564 593 937 910 1508 791 882 Initial 791 | . 6 57 237 165 491 637 791 553 Average 643 | 1 106 351 356 620 724 1163 791 712 Maximum Alert Level 4 | . 1 2 2 3 3 4 3 3 Low Security (%) 14 | 100 93 27 . 4 . . . . Level 1 15 | . 6 24 65 17 . . . . Level 2 25 | . . 48 34 26 33 5 . 38 Level 3 30 | . . . . 51 66 33 100 61 Level 4 14 | . . . . . . 61 . . Level 5 . | . . . . . . . . . High Security . | . . . . . . . . . Max Security . | . . . . . . . . . Squads Dispatched 11 | . 4 3 1 . 3 . . . Investigation 5 | . 4 . 1 . . . . . Extermination 1 | . . . . . 1 . . . Reinforcement 4 | . . 3 . . 1 . . . Assault . | . . . . . . . . . Garrison 1 | . . . . . 1 . . . Intercept . | . . . . . . . . . Searches Triggered . | . . . . . . . . . Construction Impeded 1 | . . . . . 1 . . . Haulers Reinforced . | . . . . . . . . . Active Scanning Responses . | . . . . . . . . . Cargo Convoy Interrupts . | . . . . . . . . . Stealth | -11 -10 -9 -8 -8 -7 -7 -7 -7 --------- Run | Yrd Mat Mat Mat Gar Fac Gar Fac Gar Distress Signals 2 | . . 1 1 . . . . . Communications Jammed . | . . . . . . . . . Distress Signals . | . . . . . . . . . Times Spotted 166 | . 15 39 17 29 6 30 . 30 Peak Tracking Total 7 | . 3 5 4 5 2 5 . 7 Tactical Retreats 12 | . 1 5 2 2 . 2 . . Traps | -11 -10 -9 -8 -8 -7 -7 -7 -7 ------- Run | Yrd Mat Mat Mat Gar Fac Gar Fac Gar Traps Triggered 13 | . 3 . . 9 . . . 1 Indirectly . | . . . . . . . . . Trap Hack Attempts 65 | . . . . 28 . 23 . 14 Triggered . | . . . . . . . . . Disarmed 1 | . . . . . . 1 . . Reprogrammed 5 | . . . . 3 . 2 . . Reused . | . . . . . . . . . Traps Extracted . | . . . . . . . . . Installed . | . . . . . . . . . Triggered . | . . . . . . . . . Machines | -11 -10 -9 -8 -8 -7 -7 -7 -7 ---------- Run | Yrd Mat Mat Mat Gar Fac Gar Fac Gar Machines Disabled 26 | . 1 . 1 2 14 5 . 3 Max in Single Turn 14 | . 1 . 1 1 14 1 . 1 Garrison Relay 6 | . . . . 2 . 2 . 2 Phase Generator 1 | . . . . . . . . 1 Machines Repaired . | . . . . . . . . . Machines Dismantled . | . . . . . . . . . Machines Sabotaged . | . . . . . . . . . Overloaded Fab Kills . | . . . . . . . . . Hacking | -11 -10 -9 -8 -8 -7 -7 -7 -7 --------- Run | Yrd Mat Mat Mat Gar Fac Gar Fac Gar Machines Accessed 27 | . 9 6 7 2 1 1 1 . Terminals 20 | . 7 4 6 2 . 1 . . Fabricators . | . . . . . . . . . Repair Stations 1 | . . 1 . . . . . . Recycling Units 2 | . 2 . . . . . . . Scanalyzers 1 | . . 1 . . . . . . Garrison Access 3 | . . . 1 . 1 . 1 . Total Hacks 66 | . 22 13 25 2 1 2 1 . Successful 34 | . 12 8 11 . 1 1 1 . Failed 31 | . 9 5 14 2 . 1 . . Catastrophic 8 | . 3 . 3 2 . . . . Database Lockouts 1 | . 1 . . . . . . . Manual 58 | . 24 8 24 2 . . . . Terminals 57 | . 20 9 24 2 . 2 . . Fabricators . | . . . . . . . . . Repair Stations 2 | . . 2 . . . . . . Recycling Units 2 | . 2 . . . . . . . Scanalyzers 2 | . . 2 . . . . . . Garrison Access 3 | . . . 1 . 1 . 1 . Terminal Hacks 6 | . 3 . 2 . . 1 . . Prototype ID Bank 1 | . 1 . . . . . . . Open Door 1 | . . . . . . 1 . . Terminal Index 2 | . 1 . 1 . . . . . Unreport Threat 2 | . 1 . 1 . . . . . Fabricator Hacks . | . . . . . . . . . Repair Station Hacks 2 | . . 2 . . . . . . Scan Component 1 | . . 1 . . . . . . Repair 1 | . . 1 . . . . . . Recycling Unit Hacks . | . . . . . . . . . Scanalyzer 2 | . . 2 . . . . . . Insert Component 1 | . . 1 . . . . . . Analyze 1 | . . 1 . . . . . . Garrison Access Hacks 3 | . . . 1 . 1 . 1 . Unlock Access 3 | . . . 1 . 1 . 1 . Unauthorized Hacks 21 | . 9 4 8 . . . . . Terminals 19 | . 7 4 8 . . . . . Botnet 4 | . 2 . 2 . . . . . Skim 15 | . 5 4 6 . . . . . Fabricators . | . . . . . . . . . Repair Stations . | . . . . . . . . . Recycling Units 2 | . 2 . . . . . . . Tunnel 2 | . 2 . . . . . . . Scanalyzers . | . . . . . . . . . Garrison Access . | . . . . . . . . . Data Cores Recovered . | . . . . . . . . . Used . | . . . . . . . . . Hacking Detections 23 | . 7 6 7 2 . 1 . . Full Trace Events 1 | . . . 1 . . . . . Feedback Events . | . . . . . . . . . Feedback Blocked . | . . . . . . . . . Robot Schematics Acquired . | . . . . . . . . . Robots Built . | . . . . . . . . . Authchips . | . . . . . . . . . Time . | . . . . . . . . . Total Robot Build Rating . | . . . . . . . . . Part Schematics Acquired 1 | . . 1 . . . . . . Parts Built . | . . . . . . . . . Authchips . | . . . . . . . . . Time . | . . . . . . . . . Total Part Build Rating . | . . . . . . . . . Parts Repaired 1 | . . 1 . . . . . . Time 44 | . . 44 . . . . . . Parts Recycled . | . . . . . . . . . Recycled Matter . | . . . . . . . . . Retrieved Matter . | . . . . . . . . . Retrieved Components . | . . . . . . . . . Parts Scanalyzed 1 | . . 1 . . . . . . Part Schematics Acquired 1 | . . 1 . . . . . . Parts Damaged . | . . . . . . . . . Bothacking | -11 -10 -9 -8 -8 -7 -7 -7 -7 ------------ Run | Yrd Mat Mat Mat Gar Fac Gar Fac Gar Used RIF Installer 5 | . . . . 1 . 2 . 2 Coupler Efficiency 1 | . . . . . . 1 . . Threat Obfuscator 1 | . . . . . . 1 . . Watcher Feeds 1 | . . . . . . . . 1 Patrol Navigation 1 | . . . . . . . . 1 Robots Hacked 11 | . . . . . . 4 . 7 Non-combat . | . . . . . . . . . Combat 11 | . . . . . . 4 . 7 Robot Hacks Applied 11 | . . . . . . 4 . 7 parse_system 2 | . . . . . . . . 2 overwrite_iff 1 | . . . . . . 1 . . formatsys_high 8 | . . . . . . 3 . 5 Relay Couplers Released 33 | . . . . 13 . 7 . 13 Machine Destruction 26 | . . . . 10 . 7 . 9 Programmers 7 | . . . . 3 . . . 4 Attached 10 | . . . . . . 4 . 6 Fabnet Peak Effective % . | . . . . . . . . . Robots Rewired 9 | . . . . . . 3 . 6 Allies Hacked . | . . . . . . . . . Hacks Repelled . | . . . . . . . . . Allies | -11 -10 -9 -8 -8 -7 -7 -7 -7 -------- Run | Yrd Mat Mat Mat Gar Fac Gar Fac Gar Total Allies 21 | . . . . . . 10 . 11 Largest Group 7 | . . . . . . 7 3 3 Highest-Rated Group 283 | . . . . . . 283 152 152 Highest-Rated Ally 95 | . . . . . . 95 95 95 Total Orders . | . . . . . . . . . Ally Attacks 76 | . . . . . . 43 . 33 Total Damage 2014 | . . . . . . 1067 . 947 Kills 15 | . . . . . . 9 . 6 Allies Corrupted . | . . . . . . . . . Allies Melted . | . . . . . . . . . Intel | -11 -10 -9 -8 -8 -7 -7 -7 -7 ------- Run | Yrd Mat Mat Mat Gar Fac Gar Fac Gar Robot Analysis Total . | . . . . . . . . . Derelict Logs Recovered . | . . . . . . . . . Drone Launches . | . . . . . . . . . Drone Recoveries . | . . . . . . . . . Exploration | -11 -10 -9 -8 -8 -7 -7 -7 -7 ------------- Run | Yrd Mat Mat Mat Gar Fac Gar Fac Gar Turns Passed 8985 | 60 777 1484 1070 1544 394 2095 64 1497 Spaces Moved 4372 | 42 606 744 531 995 156 671 34 593 Core 2 | 2 . . . . . . . . Treads 715 | . . . . . 78 637 . . Legs 661 | . . . . . . 34 34 593 Wheels 2994 | 40 606 744 531 995 78 . . . Hover . | . . . . . . . . . Flight . | . . . . . . . . . Fastest Speed 50 | 50 90 90 98 98 130 160 186 186 Average Speed 147 | 90 90 124 98 116 186 265 186 189 Slowest Speed 470 | 100 90 170 98 130 243 470 186 330 Overloaded Moves . | . . . . . . . . . Propulsion Burnouts . | . . . . . . . . . Robots Hopped . | . . . . . . . . . Cave-ins Triggered 1 | . . . . . . . . 1 Exploration Rate (%) 43 | 4 82 60 32 83 5 57 1 64 Regions Visited 8 Branch Regions . Pre-discovered Areas 2 | . 2 . . . . . . . Known Exits Taken 5 | . 1 1 1 . 1 . 1 . Unknown Exits Taken 1 | 1 . . . . . . . . Scrap Searched . | . . . . . . . . . Spaces Dug 9 | . . . . . . . . 9 Terrain Destroyed 220 | . . . . 2 130 . . 88 Melee . | . . . . . . . . . Projectile 18 | . . . . . . . . 18 AOE 202 | . . . . 2 130 . . 70 Terrain Rammed . | . . . . . . . . . Walls Destroyed . | . . . . . . . . . Machines Disabled . | . . . . . . . . . Actions | -11 -10 -9 -8 -8 -7 -7 -7 -7 --------- Run | Yrd Mat Mat Mat Gar Fac Gar Fac Gar Total 6394 | 57 801 1194 1043 1278 222 892 34 873 Wait 1297 | 1 147 347 446 109 30 79 . 138 Move 4366 | 41 605 743 531 994 156 670 34 592 Hop . | . . . . . . . . . Pick Up 79 | 6 10 18 17 9 3 10 . 6 Fast Attach 29 | 7 . 7 1 3 . 6 . 5 Attach 35 | . . 5 3 6 2 5 . 14 Detach 1 | . . . . . . . . 1 Swap 83 | . 7 11 6 15 6 21 . 17 Drop 70 | . 11 17 19 5 3 8 . 7 Fire 237 | 2 21 46 20 44 22 37 . 45 Melee 25 | . . . . 2 . 5 . 18 Ram 1 | . . . . 1 . . . . Kick . | . . . . . . . . . Crush . | . . . . . . . . . Escape Stasis 61 | . . . . 60 . . . 1 Rewire 45 | . . . . 2 . 28 . 15 Trap 65 | . . . . 28 . 23 . 14 Miscellaneous . | . . . . . . . . . Route ------- -11/Scrapyard -10/Materials (discovered 6 exits: *Mat x3 / *Min x2 / Sub) -9/Materials (discovered 4 exits: *Mat x2 / *Min x2) -8/Materials (discovered 2 exits: *Fac / Gar) -8/Garrison (discovered 3 exits: *Fac x3) -7/Factory -7/Garrison (discovered 2 exits: *Fac x2) -7/Factory -7/Garrison (discovered 1 exit: [*Fac]) History --------- Turn | Location | Event 14 | -11/Scrapyard | Discovered new exit (range 15) 61 | -11/Scrapyard | Entered Materials 223 | -10/Materials | Discovered new exit (range 8) 260 | -10/Materials | Discovered new exit (range 13) 313 | -10/Materials | Build established: Mutant 526 | -10/Materials | Discovered new exit (range 8) 540 | -10/Materials | Discovered new exit (range 3) 699 | -10/Materials | Learned 4 Subcaves zone layouts 700 | -10/Materials | Central database locked down 736 | -10/Materials | Learned location of 1 exit from Storage 764 | -10/Materials | Identified exit to Materials 780 | -10/Materials | Learned Storage emergency access door positions 802 | -10/Materials | Identified exit to Mines 802 | -10/Materials | Identified exit to Subcaves 825 | -10/Materials | Learned location of 1 exit from Storage 838 | -10/Materials | Entered another Materials area 838 | -9/Materials | Evolved 2 slots: Weapon x2 839 | -9/Materials | Identified exit to Materials 839 | -9/Materials | Identified exit to Mines 1126 | -9/Materials | Build established: Gunner 1855 | -9/Materials | Repaired Broken Arm. Wheel 2322 | -9/Materials | Entered another Materials area 2322 | -8/Materials | Evolved 2 slots: Propulsion x1, Utility x1 2617 | -8/Materials | Build established: Scavenger-Skirmisher 3022 | -8/Materials | Discovered new exit (range 15) 3392 | -8/Materials | Identified exit to Garrison 3392 | -8/Materials | Entered Garrison 3440 | -8/Garrison | Triggered checkpoint 3502 | -8/Garrison | Garrison Relay disabled 3608 | -8/Garrison | Triggered checkpoint 3754 | -8/Garrison | Triggered checkpoint 3765 | -8/Garrison | Core integrity fell below 50% 3790 | -8/Garrison | Destroyed 7 combat bots 3792 | -8/Garrison | Lost 3 parts (1n2w) 3926 | -8/Garrison | Triggered checkpoint 4024 | -8/Garrison | Discovered new exit (range 15) 4030 | -8/Garrison | Build established: Tank 4032 | -8/Garrison | Triggered checkpoint 4128 | -8/Garrison | Triggered checkpoint 4206 | -8/Garrison | Discovered new exit (range 8) 4262 | -8/Garrison | Triggered checkpoint 4441 | -8/Garrison | Build established: Scavenger-Gunner 4490 | -8/Garrison | Triggered checkpoint 4525 | -8/Garrison | Discovered new exit (range 10) 4755 | -8/Garrison | Installed Relay Interface Framework 4795 | -8/Garrison | Identified exit to Factory 4832 | -8/Garrison | Garrison Relay disabled 4936 | -8/Garrison | Entered Factory 4936 | -7/Factory | Evolved 2 slots: Utility x2 5237 | -7/Factory | Build established: Bothacker-Tank 5288 | -7/Factory | Garrison activated, responded to threat 5330 | -7/Factory | Identified exit to Garrison 5330 | -7/Factory | Entered Garrison 5540 | -7/Garrison | Triggered checkpoint 5589 | -7/Garrison | Garrison Relay disabled 5612 | -7/Garrison | Triggered checkpoint 5736 | -7/Garrison | Triggered checkpoint 5810 | -7/Garrison | Triggered checkpoint 5837 | -7/Garrison | Destroyed 8 combat bots 5918 | -7/Garrison | Build established: Bothacker-Gunner 6021 | -7/Garrison | Discovered new exit (range 11) 6047 | -7/Garrison | Identified exit to Factory 6096 | -7/Garrison | Triggered checkpoint 6191 | -7/Garrison | Garrison Relay disabled 6294 | -7/Garrison | Expanded RIF knowledge: Coupler Efficiency 6414 | -7/Garrison | Rescued a captive Derelict 6541 | -7/Garrison | Found embedded Infiltrators 6608 | -7/Garrison | Triggered checkpoint 6684 | -7/Garrison | Expanded RIF knowledge: Threat Obfuscation 6879 | -7/Garrison | H-XX Assembler disabled 7278 | -7/Garrison | Triggered checkpoint 7330 | -7/Garrison | Triggered checkpoint 7352 | -7/Garrison | System corruption reached 10% 7368 | -7/Garrison | Lost 3 allies 7387 | -7/Garrison | Discovered exit to Factory (range 15) 7398 | -7/Garrison | Triggered checkpoint 7425 | -7/Garrison | Entered Factory 7425 | -7/Factory | Accompanied by 3 allies 7489 | -7/Factory | Identified exit to Garrison 7489 | -7/Factory | Entered Garrison 7489 | -7/Garrison | Accompanied by 3 allies 7525 | -7/Garrison | Triggered checkpoint 7668 | -7/Garrison | Expanded RIF knowledge: Watcher Feeds 7781 | -7/Garrison | Triggered checkpoint 7781 | -7/Garrison | Triggered checkpoint 7951 | -7/Garrison | Discovered new exit (range 11) 8011 | -7/Garrison | Triggered checkpoint 8037 | -7/Garrison | Garrison Relay disabled 8139 | -7/Garrison | Crushed by falling debris 8196 | -7/Garrison | Expanded RIF knowledge: Patrol Navigation 8216 | -7/Garrison | Phase Generator disabled 8270 | -7/Garrison | Lost 4 parts (1p1n1u1w) 8358 | -7/Garrison | Build established: Botlord-Gunner 8552 | -7/Garrison | Garrison Relay disabled 8663 | -7/Garrison | Triggered checkpoint 8675 | -7/Garrison | Triggered checkpoint 8742 | -7/Garrison | Core integrity fell below 50% 8803 | -7/Garrison | Triggered checkpoint 8893 | -7/Garrison | Triggered checkpoint 8951 | -7/Garrison | Core integrity fell below 20% 8979 | -7/Garrison | Lost 8 parts (2n1u5w) 8986 | -7/Garrison | Destroyed by Y-54 Guardian with Gatling Laser Last Messages --------------- 08962_ Sneak attack on S-27 Virus. 08962_ Attempting to rewire S-27 Virus. 08963_ Sneak attack on S-27 Virus. 08963_ Attempting to rewire S-27 Virus. 08964_ Sneak attack on S-27 Virus. 08964_ S-27 Virus rewired. 08968_ Sneak attack on S-27 Virus. 08968_ Attempting to rewire S-27 Virus. 08968_ Virus 4f destroyed. 08968_ Virus 4g destroyed. 08969_ Acquired 21 matter. 08969_ Sneak attack on S-27 Virus. 08969_ Attempting to rewire S-27 Virus. 08970_ Sneak attack on S-27 Virus. 08970_ S-27 Virus rewired. 08974_ Sneak attack on S-27 Virus. 08974_ S-27 Virus rewired. 08975_ Virus 4h destroyed. 08978_ Virus 4i destroyed. 08984_ Flexi-carbon Leg destroyed. Map ----- +----------------------------------------------------+ | ? #??????????????????????????????????????????????? | | ? #??????????????????????????????????????????????? | | ? #??????????????????????????????????????????????? | | ? #??????????????????????????????????????????????? | | ? #??????????????????????????????????????????????? | | ? #??????????????????????????????????????????????? | | ? #???????? T???????????????????????????????????? | | # ##""""## #???????????????????????????????????? | | [ ##??????????????????????????????????? | | *= ?????????????????????????????????? | | !% ?????????????????????????????????? | | /## ^## #???????????????????????????????????? | | *[## ^## #???????????????????????????????????? | | "???????????????????????????????????? | | "???????????????????????????????????? | | "???????????????????????????????????? | | "???????????????????????????????????? | | "# ## #???????????????????????????????????? | | # ## #???????????????????????????????????? | | #### ####???????????????????????????? | | ??????????????????????????? | | ###??# #????????????????????????????? | | ## ## #????# #??#####?????????????????????? | | ## ## #????# #??#==%#?????????????????????? | | ######## #????# #??#/[=#?????????????????????? | | #??????# #????# #??#]@Y#?????????????????????? | | #??????# #????# #??###Y#?????????????????????? | | #??????# ###### #????#Y###### #?????????????? | | #??????# #????#=p #?????????????? | | #??????# ###### #????#%###### #?????????????? | | #??????# #????# #???## ##????????????????????? | | #??????# #????# #???# #????????????????????? | | #??????# ###### #####= ##### ####??????????? | | ###??????# = ????????? | | ?????????# ^ !% ????????? | | ?????????# ^ = ????????? | | ?????????########## ############# #####?????????? | | ??????????????????# #?????#???????##?????????????? | | ??????????????????# #???/ ???????????????????????? | | ??????????????????# #?? #????????????????????????? | | ??????????????????# ## ### #?????????????????????? | | ??????????????????# #?????????????????????? | | ??????????????????# ## ### #?????????????????????? | | ??????????????????# #?? #????????????????????????? | | ??????????????????# #???+ ???????????????????????? | | ??????????????????# #?????#???????????????????#### | | ??????????????????# ##########################!!!# | | ??????????????????# *%=!%== + !# | | ??????????????????# ##### = #####%! ##### ##!!!# | | ??????????????????# #???# #???#!![#???# #?#### | +----------------------------------------------------+ Best States ------------- Heat Dissipation 62 Energy Generation 18 Energy Capacity 290 Matter Stores 300 Matter Capacity 300 Sight Range 16 Robot Scan Range 14 Terrain Scan Density 10 Armor Coverage 450 Evasion (%) 42 Target Analysis 6 Recoil Reduction 3 Relay Coupler Types 4 Relay Coupler Value 88 Item Schematics ----------------- Shield Generator | -9/Materials | Scanalyzed Robot Schematics ------------------ None Fabricated ------------ Nothing Alien Tech Used ----------------- None Achievements -------------- None Challenges ------------ None Game ------ Seed TractorFusionCharger Manual? 0 Play Time 01:04:08 Cumulative 22.1 hours Start 2024.08.27 @ 17:57:37 End 2024.08.28 @ 03:14:32 Sessions 3 Manual Loads 0 Difficulty Rogue Special Mode None Game No. 32 Rogue 32 Adventurer 0 Explorer 0 Win Type - Total 0 Types 0/0/0/0/0/0/0/0/0 Lore% 17 Gallery% 33 Achievement% 33 Wizard Run 0 Options --------- Layout 1 ASCII 0 Keyboard 0 Movement Mouse Keybinds 0 Fullscreen 1 Font 20/SmallcapsGlow Map View 54x42 Zoom Use 0% Tactical HUD 1 Map Filters NONE Filters NONE Steam 1 RUN: 90f69c27-9978-48db-aa86-7ee8d6c610e0